fUSD/lending_fUSD_20260308
["ID","MTS","AMOUNT","RATE_DAILY","PERIOD"]
[407995240,1772989844570,-907.94,0.00019999,2]
[407995241,1772989844585,-907.94,0.00019999,2]
[407995242,1772989844601,-907.94,0.00019999,2]
[407995243,1772989844616,-907.94,0.00019999,2]
[407995244,1772989844632,-907.94,0.00019999,2]
[407995245,1772989844647,-907.94,0.00019999,2]
[407995246,1772989844663,-907.94,0.00019999,2]
[407995247,1772989844678,-908.05738242,0.00019999,2]
[407995248,1772989844693,-153007.810225,0.00019999,2]
[407995249,1772989844707,-500.0,0.00019999,2]
[407995250,1772989844722,-500.0,0.00019999,2]
[407995251,1772989844737,-549.68387848,0.00019999,2]
[407995252,1772989844751,-500.0,0.00019999,2]
[407995253,1772989844766,-3000.0,0.00019999,2]
[407995254,1772989844780,-3000.0,0.00019999,2]
[407995255,1772989844795,-3000.0,0.00019999,2]
[407995256,1772989844810,-3000.0,0.00019999,2]
[407995257,1772989844825,-3000.0,0.00019999,2]
[407995258,1772989844840,-3000.0,0.00019999,2]
[407995259,1772989844856,-3000.0,0.00019999,2]
[407995260,1772989844871,-3000.0,0.00019999,2]
[407995261,1772989844886,-3000.0,0.00019999,2]
[407995262,1772989844908,-3000.0,0.00019999,2]
[407995263,1772989844929,-3000.0,0.00019999,2]
[407995264,1772989844949,-3000.0,0.00019999,2]
[407995265,1772989844969,-3000.0,0.00019999,2]
[407995266,1772989844988,-2012.0,0.00019999,2]
[407995267,1772989845006,-500.0,0.00019999,2]
[407995268,1772989845025,-156.56482571,0.00019999,2]
[407995269,1772989845044,-524.67442213,0.00019999,2]
[407995270,1772989845061,-500.0,0.00019999,2]
[407995271,1772989845078,-500.0,0.00019999,2]
[407995272,1772989845095,-562.12711628,0.00019999,2]
[407995273,1772989845111,-500.0,0.00019999,2]
[407995274,1772989845127,-500.0,0.00019999,2]
[407995275,1772989845143,-364.69438846,0.00019999,2]
[407995276,1772989845158,-156.29759505,0.00019999,2]
[407995277,1772989845172,-150.0,0.00019999,2]
[407995278,1772989845187,-150.0,0.00019999,2]
[407995279,1772989845202,-150.0,0.00019999,2]
[407995280,1772989845217,-150.0,0.00019999,2]
[407995281,1772989845234,-150.0,0.00019999,2]
[407995282,1772989845246,-150.0,0.00019999,2]
[407995284,1772989845256,-150.0,0.00019999,2]
[407995286,1772989845266,-215.40583698,0.00019999,2]
[407995293,1772989845276,-487.0,0.00019999,2]
[407995294,1772989845656,-487.0,0.00019999,2]
[407995295,1772989845689,-487.0,0.00019999,2]
[407995296,1772989845699,-487.0,0.00019999,2]
[407995297,1772989845708,-487.0,0.00019999,2]
[407995298,1772989845717,-487.0,0.00019999,2]
[407995299,1772989845727,-487.0,0.00019999,2]
[407995301,1772989845736,-487.0,0.00019999,2]
[407995302,1772989845745,-487.0,0.00019999,2]
[407995304,1772989845755,-487.0,0.00019999,2]
[407995305,1772989845764,-487.0,0.00019999,2]
[407995306,1772989845775,-487.0,0.00019999,2]
[407995307,1772989845784,-487.0,0.00019999,2]
[407995309,1772989845795,-487.0,0.00019999,2]
[407995310,1772989845805,-487.0,0.00019999,2]
[407995311,1772989845815,-487.0,0.00019999,2]
[407995312,1772989845824,-487.0,0.00019999,2]
[407995313,1772989845833,-487.0,0.00019999,2]
[407995314,1772989845843,-756.96,0.00019999,2]
[407995316,1772989845852,-5564.0,0.0002,2]
[407995318,1772989845861,-458010.95191748,0.0002,2]
[407995320,1772989845905,-5291.68564326,0.0002,2]
[407995321,1772989845932,-255.72897374,0.0002,2]
[407995322,1772989845951,-5022.60001491,0.0002,2]
[407995323,1772989845963,-852971.434856,0.0002,2]
[407995324,1772989845977,-269.47978326,0.0002,2]
[407995325,1772989846234,-12184.38483862,0.0002,2]
[407995326,1772989846246,-1256.91365521,0.0002,2]
[407995327,1772989846257,-1345.00163473,0.0002,2]
[407995328,1772989846276,-676.87939562,0.0002,2]
[407995389,1772990965101,-150.0,0.0001153,2]
[407995390,1772990965126,-244.0,0.0001153,2]
[407995391,1772990965149,-300.0,0.00012682,2]
[407995392,1772990965174,-300.0,0.00012682,2]
[407995393,1772990965199,-1198.0,0.00012682,2]
[407995394,1772990965226,-208.0,0.00012682,2]
[407995395,1772990996734,-92.0,0.00012682,2]
[407995396,1772990996755,-878.0,0.00012683,2]
[407995416,1772991032346,-284.59544016,0.00012583,2]
[407995417,1772991032356,-58.36955984,0.00012682,2]
[407995418,1772991032369,-241.63044016,0.00012682,2]
[407995419,1772991032379,-284.16631025,0.00012683,2]
[407995420,1772991032398,-2165.74723984,0.00012683,2]
[407995421,1772991032407,-4023.44334186,0.00012683,2]
[407995422,1772991032417,-254.0,0.00012683,2]
[407995423,1772991032427,-300.0,0.00013801,2]
[407995424,1772991032436,-300.0,0.00013801,2]
[407995425,1772991032445,-300.0,0.00013801,2]
[407995426,1772991032455,-300.0,0.00013801,2]
[407995427,1772991032465,-300.0,0.0001395,2]
[407995428,1772991032478,-600.0,0.0001395,2]
[407995429,1772991032488,-600.0,0.0001395,2]
[407995430,1772991032498,-600.0,0.0001395,2]
[407995431,1772991032508,-600.0,0.0001395,2]
[407995432,1772991032517,-603.55489627,0.0001395,2]
[407995433,1772991032527,-300.0,0.00013951,2]
[407995434,1772991032538,-250.0,0.00013951,2]
[407995435,1772991032548,-286.95333336,0.00014125,2]
[407995436,1772991032557,-250.0,0.00014125,2]
[407995437,1772991032567,-503.1927294,0.00015567,2]
[407995438,1772991032577,-209.0,0.00016341,2]
[407995439,1772991032587,-200.0,0.00016438,2]
[407995440,1772991032597,-500.0,0.00016973,2]
[407995441,1772991032606,-505.78610807,0.00016973,2]
[407995442,1772991032616,-500.0,0.00016973,2]
[407995443,1772991032626,-150.0,0.00016999,2]
[407995444,1772991032635,-9732.73,0.00017,2]
[407995445,1772991032645,-312.09,0.00017,2]
[407995446,1772991032658,-9999.99,0.00017,2]
[407995447,1772991032667,-5730.38,0.00017,2]
[407995448,1772991032677,-9999.99,0.00017,2]
[407995449,1772991032686,-150.99,0.00017,2]
[407995450,1772991032696,-430.25,0.00017,2]
[407995451,1772991032706,-299.99,0.00017,4]
[407995452,1772991032715,-150.99,0.00017,2]
[407995453,1772991032724,-3016.29,0.00017,2]
[407995454,1772991032736,-507.03,0.00017,2]
[407995455,1772991032746,-501.0,0.00017,2]
[407995456,1772991032755,-200.0,0.00017,2]
[407995457,1772991032765,-296.0,0.00017061,2]
[407995458,1772991032775,-168.0,0.00017061,2]
[407995459,1772991032785,-200.0,0.00017077,2]
[407995460,1772991032795,-367.91,0.00017131,2]
[407995461,1772991032804,-150.0,0.00017188,2]
[407995462,1772991032814,-4883.39,0.00017326,2]
[407995463,1772991032823,-2000.0,0.00017529,2]
[407995464,1772991032833,-166.66,0.00017587,2]
[407995465,1772991032842,-200.0,0.00017598,2]
[407995466,1772991032852,-166.66,0.00017957,2]
[407995467,1772991032861,-1767.34,0.00017972,2]
[407995468,1772991032870,-2400.0,0.00018082,7]
[407995469,1772991032879,-2400.0,0.00018082,7]
[407995470,1772991032889,-501.0,0.00018167,3]
[407995471,1772991032899,-1991.43,0.00018196,2]
[407995472,1772991032909,-166.66,0.00018327,2]
[407995473,1772991032918,-1236.1007734,0.00018677,2]
[407995474,1772991032928,-2461.01214313,0.00018678,2]
[407995475,1772991032940,-17811.37847537,0.00018678,2]
[407995477,1772991037910,-152.0,0.00014808,2]
[407995478,1772991037919,-142.38125965,0.00018678,2]
[407995479,1772991037949,-400.93977782,0.00018678,2]
[407995484,1772991039847,-3412.67833496,0.00018678,2]
[407995485,1772991040009,-913.45703258,0.00018678,2]
[407995486,1772991040065,-8314.45124369,0.00018678,2]
[407995487,1772991040076,-64897.8793328,0.00018678,2]
[407995488,1772991040086,-6751.2313,0.00018678,2]
[407995489,1772991040095,-166.66,0.00018698,2]
[407995490,1772991040105,-846.32618364,0.00018703,2]
[407995491,1772991040115,-2500.0,0.00018778,2]
[407995492,1772991040124,-206.01679557,0.00018845,2]
[407995493,1772991040133,-2000.0,0.00018848,2]
[407995494,1772991040143,-284.57,0.00018868,2]
[407995495,1772991040152,-165.79506475,0.00018878,2]
[407995496,1772991040162,-138002.2249,0.00018878,2]
[407995497,1772991040172,-1428.38747117,0.00018914,2]
[407995498,1772991040181,-500.0,0.00018914,2]
[407995499,1772991040191,-500.0,0.00018964,2]
[407995500,1772991040202,-622.61245981,0.00018964,2]
[407995501,1772991040212,-324.64568051,0.00018964,2]
[407995502,1772991040221,-32923.6528,0.00018978,2]
[407995503,1772991040231,-1000.0,0.00018978,2]
[407995504,1772991040241,-206.01679557,0.00019032,2]
[407995505,1772991040250,-166.66,0.00019068,2]
[407995506,1772991040260,-516.64002131,0.00019077,2]
[407995507,1772991040270,-2400.0,0.00019178,7]
[407995508,1772991040280,-2400.0,0.00019178,7]
[407995509,1772991040289,-150.0,0.00019178,2]
[407995510,1772991040299,-206.01679557,0.00019218,2]
[407995511,1772991040308,-367.91,0.00019273,2]
[407995512,1772991040318,-501.0,0.00019333,4]
[407995513,1772991040328,-166.66,0.00019438,2]
[407995514,1772991040337,-1481.23780761,0.00019462,2]
[407995515,1772991040347,-350.0,0.00019558,2]
[407995516,1772991040356,-456.14890177,0.000196,2]
[407995517,1772991040366,-3246.741,0.00019661,2]
[407995518,1772991040375,-2000.0,0.000197,2]
[407995519,1772991040385,-8610.01239405,0.000197,2]
[407995520,1772991040395,-500.0,0.00019711,2]
[407995521,1772991040404,-150.0,0.00019711,2]
[407995522,1772991040414,-150.0,0.00019711,2]
[407995523,1772991040423,-150.0,0.00019711,2]
[407995524,1772991040432,-500.0,0.00019711,2]
[407995525,1772991040442,-500.0,0.00019711,2]
[407995526,1772991040451,-150.0,0.00019711,2]
[407995527,1772991040460,-500.0,0.00019711,2]
[407995528,1772991040470,-150.0,0.00019711,2]
[407995529,1772991040479,-150.0,0.00019711,2]
[407995530,1772991040489,-165.95964201,0.00019711,2]
[407995531,1772991040498,-250.0,0.00019726,2]
[407995532,1772991040508,-1226.71,0.00019751,2]
[407995533,1772991040517,-500.0,0.00019766,2]
[407995534,1772991040527,-150.0,0.00019766,2]
[407995535,1772991040536,-150.0,0.00019766,2]
[407995536,1772991040546,-150.0,0.00019766,2]
[407995537,1772991040555,-500.0,0.00019766,2]
[407995538,1772991040564,-402.39746833,0.00019766,2]
[407995539,1772991040574,-500.0,0.00019766,2]
[407995540,1772991040583,-150.0,0.00019766,2]
[407995541,1772991040593,-500.0,0.00019821,2]
[407995542,1772991040602,-150.0,0.00019821,2]
[407995543,1772991040612,-150.0,0.00019821,2]
[407995544,1772991040622,-177.89931814,0.00019821,2]
[407995545,1772991040632,-500.0,0.00019821,2]
[407995546,1772991040641,-500.0,0.00019821,2]
[407995547,1772991040651,-150.0,0.00019821,2]
[407995548,1772991040664,-200.0,0.0001984,2]
[407995549,1772991040674,-500.0,0.00019875,2]
[407995550,1772991040683,-150.0,0.00019875,2]
[407995551,1772991040692,-150.0,0.00019875,2]
[407995552,1772991040701,-500.0,0.00019875,2]
[407995553,1772991040712,-500.0,0.00019875,2]
[407995554,1772991040721,-150.0,0.00019875,2]
[407995555,1772991040731,-5800.0,0.00019883,2]
[407995556,1772991040742,-5800.0,0.00019892,2]
[407995557,1772991040752,-775.18242575,0.000199,2]
[407995558,1772991040761,-5800.0,0.000199,2]
[407995559,1772991040770,-751.70464607,0.000199,2]
[407995561,1772991040779,-165.79506474,0.000199,2]
[407995562,1772991040789,-472.0,0.00019916,2]
[407995563,1772991040798,-500.0,0.0001993,2]
[407995564,1772991040807,-238.0,0.0001993,2]
[407995565,1772991040817,-150.0,0.0001993,2]
[407995566,1772991040826,-500.0,0.0001993,2]
[407995567,1772991040835,-150.0,0.0001993,2]
[407995568,1772991040845,-150.0,0.0001993,2]
[407995569,1772991040854,-500.0,0.00019985,2]
[407995570,1772991040864,-250.0,0.00019985,2]
[407995571,1772991040873,-500.0,0.00019985,2]
[407995572,1772991040883,-250.0,0.00019985,2]
[407995573,1772991040893,-284.57,0.00019989,2]
[407995574,1772991040903,-151.0,0.00019997,2]
[407995575,1772991040913,-300.0,0.00019999,2]
[407995576,1772991040933,-300.0,0.00019999,2]
[407995577,1772991040945,-870.11,0.00019999,2]
[407995578,1772991040954,-870.11,0.00019999,2]
[407995579,1772991040963,-870.11,0.00019999,2]
[407995580,1772991040974,-870.11,0.00019999,2]
[407995581,1772991040983,-870.11,0.00019999,2]
[407995582,1772991040994,-870.11,0.00019999,2]
[407995583,1772991041003,-870.11,0.00019999,2]
[407995584,1772991041012,-870.11,0.00019999,2]
[407995585,1772991041021,-870.11,0.00019999,2]
[407995586,1772991041030,-870.11,0.00019999,2]
[407995587,1772991041039,-870.11,0.00019999,2]
[407995588,1772991041050,-870.11,0.00019999,2]
[407995589,1772991041061,-870.11,0.00019999,2]
[407995590,1772991041071,-870.11,0.00019999,2]
[407995591,1772991041081,-870.11,0.00019999,2]
[407995592,1772991041090,-870.11,0.00019999,2]
[407995593,1772991041100,-870.11,0.00019999,2]
[407995594,1772991041109,-870.11,0.00019999,2]
[407995595,1772991041118,-870.11,0.00019999,2]
[407995596,1772991041127,-870.11,0.00019999,2]
[407995597,1772991041137,-870.11,0.00019999,2]
[407995598,1772991041146,-870.11,0.00019999,2]
[407995599,1772991041155,-870.11,0.00019999,2]
[407995600,1772991041165,-870.20738242,0.00019999,2]
[407995601,1772991041175,-500.0,0.00019999,2]
[407995602,1772991041184,-500.0,0.00019999,2]
[407995603,1772991041193,-500.0,0.00019999,2]
[407995604,1772991041203,-549.68387848,0.00019999,2]
[407995605,1772991041214,-500.0,0.00019999,2]
[407995606,1772991041225,-500.0,0.00019999,2]
[407995607,1772991041235,-500.0,0.00019999,2]
[407995608,1772991041244,-284.83624171,0.00019999,2]
[407995609,1772991041254,-3000.0,0.00019999,2]
[407995610,1772991041264,-3000.0,0.00019999,2]
[407995611,1772991041273,-3000.0,0.00019999,2]
[407995612,1772991041283,-3000.0,0.00019999,2]
[407995613,1772991041292,-3000.0,0.00019999,2]
[407995614,1772991041303,-3000.0,0.00019999,2]
[407995615,1772991041312,-3000.0,0.00019999,2]
[407995616,1772991041321,-3000.0,0.00019999,2]
[407995617,1772991041331,-3000.0,0.00019999,2]
[407995618,1772991041340,-3000.0,0.00019999,2]
[407995619,1772991041349,-3000.0,0.00019999,2]
[407995620,1772991041358,-3000.0,0.00019999,2]
[407995621,1772991041368,-3000.0,0.00019999,2]
[407995622,1772991041377,-2012.0,0.00019999,2]
[407995623,1772991041387,-206.35597305,0.00019999,2]
[407995624,1772991041396,-500.0,0.00019999,2]
[407995625,1772991041406,-417.10161953,0.00019999,2]
[407995626,1772991041415,-169.06691202,0.00019999,2]
[407995627,1772991041426,-500.0,0.00019999,2]
[407995628,1772991041436,-158.12026581,0.00019999,2]
[407995629,1772991041446,-500.0,0.00019999,2]
[407995630,1772991041455,-500.0,0.00019999,2]
[407995631,1772991041465,-500.0,0.00019999,2]
[407995632,1772991041474,-500.0,0.00019999,2]
[407995633,1772991041484,-500.0,0.00019999,2]
[407995634,1772991041493,-500.0,0.00019999,2]
[407995635,1772991041503,-375.13130211,0.00019999,2]
[407995636,1772991041512,-520.99198351,0.00019999,2]
[407995637,1772991041521,-162.46726597,0.00019999,2]
[407995638,1772991041531,-150.0,0.00019999,2]
[407995639,1772991041540,-215.40583698,0.00019999,2]
[407995640,1772991041549,-5518.0,0.0002,2]
[407995641,1772991041558,-4416.0,0.0002,2]
[407995642,1772991041567,-302085.74465723,0.0002,2]
[407995643,1772991041609,-272.926631,0.0002,2]
[407995660,1772991045771,-324.64568051,0.00018964,2]
[407995661,1772991045781,-500.0,0.00018964,2]
[407995662,1772991045792,-432399.52746044,0.0002,2]
[407995663,1772991045825,-48849.79697565,0.0002,2]
[407995670,1772991609875,1009.0,0.00012999,60]
[407995671,1772991609907,1.63103,0.00012999,60]
[407995690,1772992139196,90000.0,0.0002,120]
[407995691,1772992198977,194.89,8.975e-05,2]
[407995692,1772992199188,194.89,9.448e-05,2]
[407995693,1772992199404,194.89,9.92e-05,2]
[407995694,1772992200379,194.89,0.00010392,2]
[407995695,1772992200415,194.89,0.00010865,2]
[407995696,1772992200448,194.89,0.00011337,2]
[407995699,1772992231787,-194.89,0.0001181,2]
[407995700,1772992231796,-247.0,0.0001181,2]
[407995701,1772992231806,-194.89,0.00012282,2]
[407995702,1772992231815,-194.89,0.00012754,2]
[407995703,1772992231825,-194.89,0.00013227,2]
[407995704,1772992231834,-194.89,0.00013699,2]
[407995705,1772992231843,-825.28597902,0.00014,2]
[407995706,1772992231856,-8174.71402098,0.00014,2]
[407995707,1772992231865,-194.89,0.00014172,2]
[407995708,1772992231874,-194.89,0.00014644,2]
[407995709,1772992231884,-176.69,0.00014943,2]
[407995711,1772992231901,-194.89,0.00015116,2]
[407995713,1772992231913,-194.89,0.00015589,2]
[407995715,1772992231922,-300.0,0.00015694,2]
[407995717,1772992231932,-1955.89,0.00015695,2]
[407995719,1772992231942,-468.0503867,0.00016009,2]
[407995721,1772992231951,-194.89,0.00016061,2]
[407995723,1772992231961,-150.0,0.00016153,2]
[407995724,1772992231971,-600.0,0.00016437,2]
[407995726,1772992231981,-539.12,0.00016437,2]
[407995727,1772992231991,-200.0,0.00016438,2]
[407995728,1772992232002,-194.89,0.00016533,2]
[407995729,1772992232013,-500.0,0.000169,2]
[407995730,1772992232029,-502.0,0.00017,2]
[407995731,1772992232039,-194.89,0.00017006,2]
[407995732,1772992232049,-420.0,0.00017164,2]
[407995733,1772992232060,-194.89,0.00017478,2]
[407995734,1772992232070,-150.99,0.00017671,2]
[407995735,1772992232080,-9999.99,0.00017671,2]
[407995736,1772992232089,-9999.99,0.00017671,2]
[407995737,1772992232099,-720.72,0.00017671,2]
[407995738,1772992232108,-194.89,0.00017951,2]
[407995739,1772992232118,-2200.0,0.00018082,7]
[407995740,1772992232128,-2200.0,0.00018082,7]
[407995741,1772992232138,-502.0,0.00018189,3]
[407995742,1772992232148,-8610.01239405,0.000184,2]
[407995743,1772992232158,-1778.77,0.00018435,2]
[407995744,1772992232167,-3240.0,0.0001858,2]
[407995745,1772992232177,-892.86053309,0.00018677,2]
[407995746,1772992232187,-2770.5884,0.00018678,2]
[407995747,1772992232196,-1000.0,0.00018678,2]
[407995748,1772992232206,-587.0,0.00018772,2]
[407995749,1772992232215,-500.0,0.00018877,2]
[407995750,1772992232224,-1500.0,0.00018955,2]
[407995751,1772992232234,-2500.0,0.00018999,2]
[407995752,1772992232244,-2500.0,0.00018999,2]
[407995753,1772992232255,-2500.0,0.00018999,2]
[407995754,1772992232265,-2500.0,0.00018999,2]
[407995755,1772992232275,-2500.0,0.00018999,2]
[407995756,1772992232285,-2500.0,0.00018999,2]
[407995757,1772992232296,-168.86085394,0.00018999,2]
[407995758,1772992232307,-174.61919141,0.00018999,2]
[407995759,1772992232317,-500.0,0.00018999,2]
[407995760,1772992232327,-1428.38747117,0.00018999,2]
[407995761,1772992232337,-151.0,0.00018999,2]
[407995762,1772992232347,-500.0,0.00018999,2]
[407995763,1772992232357,-500.0,0.00018999,2]
[407995764,1772992232367,-500.0,0.00018999,2]
[407995765,1772992232378,-500.0,0.00018999,2]
[407995766,1772992232388,-500.0,0.00018999,2]
[407995767,1772992232399,-500.0,0.00018999,2]
[407995768,1772992232409,-500.0,0.00018999,2]
[407995769,1772992232419,-500.0,0.00018999,2]
[407995770,1772992232428,-500.0,0.00018999,2]
[407995771,1772992232438,-500.0,0.00018999,2]
[407995772,1772992232447,-500.0,0.00018999,2]
[407995773,1772992232461,-2901.35132108,0.00018999,2]
[407995774,1772992232471,-262.90206542,0.00018999,2]
[407995775,1772992232481,-200.0,0.00019,6]
[407995776,1772992232491,-500.0,0.000191,6]
[407995777,1772992232500,-2200.0,0.00019178,7]
[407995778,1772992232510,-2200.0,0.00019178,7]
[407995779,1772992232521,-484.09,0.00019178,30]
[407995780,1772992232531,-700.0,0.000192,7]
[407995781,1772992232542,-1000.0,0.000193,7]
[407995782,1772992232552,-502.0,0.00019377,4]
[407995783,1772992232563,-790.24070377,0.00019397,2]
[407995784,1772992232573,-1200.0,0.000194,7]
[407995785,1772992232583,-1595.62870048,0.00019447,2]
[407995786,1772992232593,-752.90675653,0.00019497,2]
[407995788,1772992237859,-842.72194394,0.00019497,2]
[407995789,1772992237869,-2000.0,0.000195,2]
[407995790,1772992237878,-200.0,0.000195,7]
[407995791,1772992237887,-7000.0,0.000195,2]
[407995792,1772992237896,-5536.52476795,0.00019521,2]
[407995793,1772992238008,-737.16750829,0.00019521,2]
[407995794,1772992238024,-1700.56884544,0.00019521,2]
[407995806,1772992239989,-278.30504279,0.00019521,2]
[407995807,1772992240200,-37332.62667872,0.00019521,2]
[407995808,1772992240211,-52768.98475681,0.00019521,2]
[407995809,1772992240221,-2848.5769,0.00019521,2]
[407995810,1772992240232,-4137.6111,0.00019521,2]
[407995811,1772992240241,-1481.23780761,0.00019547,2]
[407995812,1772992240250,-1595.62870047,0.00019548,2]
[407995813,1772992240259,-1595.62870047,0.00019598,2]
[407995814,1772992240269,-456.14890177,0.000196,2]
[407995815,1772992240278,-200.0,0.000196,7]
[407995816,1772992240288,-2597.393,0.00019621,2]
[407995817,1772992240297,-1595.62870047,0.00019648,2]
[407995818,1772992240307,-1595.62870047,0.00019699,2]
[407995819,1772992240317,-200.0,0.000197,7]
[407995820,1772992240327,-774.08,0.00019711,2]
[407995821,1772992240337,-500.0,0.00019711,2]
[407995822,1772992240346,-150.0,0.00019711,2]
[407995823,1772992240355,-150.0,0.00019711,2]
[407995824,1772992240364,-150.0,0.00019711,2]
[407995825,1772992240373,-165.95964201,0.00019711,2]
[407995826,1772992240382,-500.0,0.00019711,2]
[407995827,1772992240391,-150.0,0.00019711,2]
[407995828,1772992240400,-150.0,0.00019711,2]
[407995829,1772992240410,-150.0,0.00019711,2]
[407995830,1772992240420,-1595.62870047,0.00019749,2]
[407995831,1772992240430,-500.0,0.00019766,2]
[407995832,1772992240439,-150.0,0.00019766,2]
[407995833,1772992240448,-150.0,0.00019766,2]
[407995834,1772992240458,-500.0,0.00019766,2]
[407995835,1772992240467,-150.0,0.00019766,2]
[407995836,1772992240476,-150.0,0.00019766,2]
[407995837,1772992240485,-150.0,0.00019766,2]
[407995838,1772992240494,-1595.62870047,0.00019799,2]
[407995839,1772992240503,-2000.0,0.000198,2]
[407995840,1772992240513,-2000.0,0.000198,2]
[407995841,1772992240522,-2000.0,0.000198,2]
[407995842,1772992240531,-2000.0,0.000198,2]
[407995843,1772992240541,-200.0,0.000198,7]
[407995844,1772992240549,-6021.4741338,0.000198,2]
[407995845,1772992240558,-500.0,0.00019821,2]
[407995846,1772992240567,-150.0,0.00019821,2]
[407995848,1772992240575,-150.0,0.00019821,2]
[407995849,1772992240584,-500.0,0.00019821,2]
[407995850,1772992240592,-150.0,0.00019821,2]
[407995851,1772992240602,-177.89931814,0.00019821,2]
[407995852,1772992240611,-200.0,0.00019821,2]
[407995853,1772992240621,-200.0,0.0001984,2]
[407995854,1772992240630,-1595.62870047,0.0001985,2]
[407995855,1772992240640,-500.0,0.00019875,2]
[407995856,1772992240650,-150.0,0.00019875,2]
[407995857,1772992240659,-150.0,0.00019875,2]
[407995858,1772992240668,-500.0,0.00019875,2]
[407995859,1772992240678,-150.0,0.00019875,2]
[407995860,1772992240688,-2500.0,0.00019899,2]
[407995861,1772992240698,-167.38600647,0.00019899,2]
[407995862,1772992240707,-169.20527612,0.00019899,2]
[407995863,1772992240717,-169.20527608,0.00019899,2]
[407995864,1772992240726,-167.38600647,0.00019899,2]
[407995865,1772992240735,-169.20527608,0.00019899,2]
[407995866,1772992240744,-167.38600647,0.00019899,2]
[407995867,1772992240753,-169.20527608,0.000199,2]
[407995868,1772992240763,-167.38600647,0.000199,2]
[407995869,1772992240773,-169.20527608,0.000199,2]
[407995870,1772992240784,-167.38600647,0.000199,2]
[407995871,1772992240794,-169.20527608,0.000199,2]
[407995872,1772992240803,-522.04793214,0.000199,2]
[407995873,1772992240813,-2000.0,0.000199,2]
[407995874,1772992240821,-5800.0,0.000199,2]
[407995875,1772992240831,-2000.0,0.000199,2]
[407995876,1772992240840,-2000.0,0.000199,2]
[407995877,1772992240849,-2000.0,0.000199,2]
[407995878,1772992240858,-2000.0,0.000199,2]
[407995879,1772992240867,-1541.03721467,0.000199,2]
[407995880,1772992240875,-1595.62870047,0.000199,2]
[407995881,1772992240884,-600.0,0.000199,7]
[407995882,1772992240893,-167.38600647,0.000199,2]
[407995883,1772992240902,-169.20527608,0.000199,2]
[407995884,1772992240912,-751.70464607,0.000199,2]
[407995885,1772992240921,-500.0,0.0001993,2]
[407995886,1772992240931,-238.0,0.0001993,2]
[407995887,1772992240940,-150.0,0.0001993,2]
[407995888,1772992240949,-150.0,0.0001993,2]
[407995889,1772992240958,-150.0,0.0001993,2]
[407995890,1772992240967,-500.0,0.00019985,2]
[407995891,1772992240976,-250.0,0.00019985,2]
[407995892,1772992240985,-250.0,0.00019985,2]
[407995893,1772992240993,-151.0,0.00019996,2]
[407995894,1772992241002,-151.0,0.00019997,2]
[407995895,1772992241011,-151.0,0.00019997,2]
[407995896,1772992241024,-500.0,0.00019998,2]
[407995897,1772992241033,-622.61245981,0.00019998,2]
[407995898,1772992241042,-500.0,0.00019998,2]
[407995899,1772992241051,-500.0,0.00019998,2]
[407995900,1772992241060,-500.0,0.00019998,2]
[407995901,1772992241069,-479.09264322,0.00019998,2]